Cogmind - Beta 13 *** ADVENTURER MODE // 2024.04.24 @ 23:03:11 Player: Bert Result: Self-destructed Performance ------------- Evolutions (1) 500 Regions Visited (3) 600 Robots Destroyed (12) 60 Value Destroyed (130) 130 Prototype IDs (0) 0 Alien Tech Used (0) 0 Bonus (0) 0 TOTAL SCORE: 1290 Bonus ------- None Cogmind --------- Core Integrity 400/400 Matter 280/300 Energy 275/275 System Corruption 0% Temperature Cool (0) Movement Rolling (80) Location -9/Materials Parts ------- > --- POWER (2) -------- Ion Engine Light Ion Engine > --- PROPULSION (2) --- Wheel Wheel > --- UTILITY (2) ------ Small Storage Unit Authchip [Storage] > --- WEAPON (3) ------- Medium Laser Small Laser Assault Rifle > --- INVENTORY (8) ---- Light Ion Engine Wheel Small Storage Unit Improved Light Armor Plating Light Assault Rifle Peak State ------------ > --- POWER ------------ Ion Engine Light Ion Engine > --- PROPULSION ------- Wheel Wheel > --- UTILITY ---------- Small Storage Unit Authchip [Storage] > --- WEAPON ----------- Medium Laser Small Laser Assault Rifle > --- INVENTORY -------- Light Ion Engine Wheel Small Storage Unit Improved Light Armor Plating Light Assault Rifle [Rating: 12] Favorites ----------- Power Ion Engine Engine Ion Engine Propulsion Wheel Wheel Wheel Utility Small Storage Unit Storage Small Storage Unit Hackware Authchip [Storage] Weapon Medium Laser Energy Gun Medium Laser Ballistic Gun Assault Rifle Build | -11 -10 -10 -9 ------- Run | Yrd Mat Min Mat Slots Evolved 2 | . . . 2 Power 1 | . . . 1 Propulsion . | . . . . Utility . | . . . . Weapon 1 | . . . 1 Parts Attached 12 | 6 1 3 2 Power 2 | 1 . . 1 Engine 2 | 1 . . 1 Core . | . . . . Reactor . | . . . . Propulsion 4 | 2 . 2 . Treads . | . . . . Leg . | . . . . Wheel 4 | 2 . 2 . Hover . | . . . . Flight . | . . . . Utility 2 | 1 . 1 . Device . | . . . . Storage 1 | 1 . . . Processor . | . . . . Hackware 1 | . . 1 . Protection . | . . . . Artifact . | . . . . Weapon 4 | 2 1 . 1 Energy Gun 3 | 2 . . 1 Energy Cannon . | . . . . Ballistic Gun 1 | . 1 . . Ballistic Cannon . | . . . . Launcher . | . . . . Special Weapon . | . . . . Impact Weapon . | . . . . Slashing Weapon . | . . . . Piercing Weapon . | . . . . Special Melee Weapon . | . . . . Unidentified Prototypes . | . . . . Parts Lost 1 | . . 1 . Power . | . . . . Propulsion 1 | . . 1 . Utility . | . . . . Weapon . | . . . . Highest Loss Streak 1 | . . 1 . To Critical Strikes . | . . . . Average Slot Usage (%) 94 | . 85 96 100 Engine 14 | . 14 14 22 Wheel 27 | . 28 27 22 Storage 13 | . 14 14 11 Hackware 8 | . . 11 11 Energy Gun 17 | . 26 14 22 Ballistic Gun 10 | . 1 14 11 Naked Turns . | . . . . Heaviest Build 18 | 13 14 14 18 Greatest Support 26 | 26 26 26 20 Greatest Overweight (x) 1 | . . 1 . Average Overweight (x) . | . . . . Largest Inventory Capacity 8 | 8 8 8 8 Average Capacity 7 | 6 8 8 8 Most Carried 7 | 5 5 7 6 Average Carried 4 | 1 2 5 5 Final Capacity 8 | 8 8 8 8 Final Carried 7 | . 5 7 5 Class Distribution -------------------- 91% | Mutant 8% | Gunner Dominant Class ---------------- Mutant | -10/Materials Mutant | -10/Mines Gunner | -9/Materials Resources | -11 -10 -10 -9 ----------- Run | Yrd Mat Min Mat Matter Collected 379 | 202 45 132 . Remotely . | . . . . Salvage Created 247 | . 88 159 . Parts 20 | . 9 11 . Haulers Intercepted . | . . . . Recyclers Shooed . | . . . . Parts Field Recycled . | . . . . Retrieved Matter . | . . . . Parts Self-Destructed . | . . . . Prevented . | . . . . Kills | -11 -10 -10 -9 ------- Run | Yrd Mat Min Mat Combat Hostiles Destroyed 18 | . 6 12 . Guns 18 | . 6 12 . Classes Destroyed 2 | . 1 1 . Swarmer 12 | . 6 6 . Assembled 6 | . . 6 . Best Kill Streak 4 | . 3 4 . Combat Bots Only 4 | . 3 4 . Max Kills in Single Turn 2 | . 2 1 . Gunslinging 1 | . 1 . . Exploded . | . . . . Melee . | . . . . Uniques/NPCs Destroyed . | . . . . Combat | -11 -10 -10 -9 -------- Run | Yrd Mat Min Mat Hostile Shots Fired 58 | . 13 45 . Missed 20 | . 3 17 . Damage Taken 382 | . 65 317 . Core 133 | . 17 116 . Absorbed by Shields . | . . . . Ignored by Resistances 108 | . 20 88 . Core Remaining (%) 73 | 100 . 46 . Volleys Fired 36 | . 8 28 . Largest 2 | . 2 2 . Hottest 90 | . 90 70 . Shots Fired 72 | . 16 56 . Gun 72 | . 16 56 . Cannon . | . . . . Launcher . | . . . . Special . | . . . . Kinetic 28 | . . 28 . Thermal 44 | . 16 28 . Explosive . | . . . . Electromagnetic . | . . . . Robot Hit Streak 10 | . 4 10 . Robot Miss Streak 4 | . 1 4 . Penetration Max . | . . . . Secondary Targets 4 | . 1 3 . Max Gunslinging Chain 1 | . 1 1 . Shots Hit Robots 49 | . 11 38 . Core Hits 21 | . 6 15 . Critical Kills . | . . . . Critical Parts Destroyed . | . . . . Critical Strikes . | . . . . Melee Attacks . | . . . . Impact . | . . . . Slashing . | . . . . Piercing . | . . . . Sneak Attacks . | . . . . Combat Hostiles . | . . . . Follow-up Attacks . | . . . . Damage Inflicted 625 | . 129 496 . Guns 608 | . 129 479 . Cannons . | . . . . Explosions . | . . . . Melee . | . . . . Ramming 17 | . . 17 . Kinetic 243 | . . 243 . Thermal 365 | . 129 236 . Explosive . | . . . . Electromagnetic . | . . . . Impact . | . . . . Slashing . | . . . . Piercing . | . . . . Highest Corruption . | . . . . Average Corruption . | . . . . Corruption Purged . | . . . . Corruption Blocked . | . . . . Overload Shots . | . . . . Overflow Damage . | . . . . Projectiles . | . . . . Explosions . | . . . . Melee . | . . . . Knockbacks . | . . . . Impact . | . . . . Kinetic . | . . . . Secondary . | . . . . Self-Inflicted Damage 8 | . . 8 . Shots . | . . . . Rammed 2 | . . 2 . Targets Rammed 2 | . . 2 . Kicked . | . . . . Crushed . | . . . . Highest Temperature 117 | . 90 117 . Average Temperature 38 | . 36 38 . Received Heat Transfer . | . . . . Siege Activations . | . . . . Robots Corrupted . | . . . . Combat Hostiles . | . . . . Parts Fried . | . . . . Impact Corruptions . | . . . . Robots Melted . | . . . . Combat Hostiles . | . . . . Parts Melted 1 | . 1 . . Heat Transferred 1038 | . 335 703 . Parts Sabotaged . | . . . . Parts Stolen . | . . . . Parts Stripped . | . . . . Power Chain Reactions . | . . . . Alert | -11 -10 -10 -9 ------- Run | Yrd Mat Min Mat Peak Influence 215 | . 155 215 1 Initial 51 | . . 51 1 Average 134 | . 115 178 1 Maximum Alert Level 1 | . . 1 . Low Security (%) 55 | 100 100 25 100 Level 1 44 | . . 74 . Level 2 . | . . . . Level 3 . | . . . . Level 4 . | . . . . Level 5 . | . . . . High Security . | . . . . Max Security . | . . . . Squads Dispatched 1 | . . . 1 Investigation 1 | . . . 1 Extermination . | . . . . Reinforcement . | . . . . Assault . | . . . . Garrison . | . . . . Intercept . | . . . . Searches Triggered . | . . . . Construction Impeded . | . . . . Haulers Reinforced . | . . . . Active Scanning Responses . | . . . . Cargo Convoy Interrupts . | . . . . Stealth | -11 -10 -10 -9 --------- Run | Yrd Mat Min Mat Distress Signals 1 | . 1 . . Communications Jammed . | . . . . Distress Signals . | . . . . Times Spotted 20 | . 8 12 . Peak Tracking Total 4 | . 4 3 1 Tactical Retreats . | . . . . Traps | -11 -10 -10 -9 ------- Run | Yrd Mat Min Mat Traps Triggered 1 | . . . 1 Indirectly . | . . . . Trap Hack Attempts . | . . . . Triggered . | . . . . Disarmed . | . . . . Reprogrammed . | . . . . Reused . | . . . . Traps Extracted . | . . . . Installed . | . . . . Triggered . | . . . . Machines | -11 -10 -10 -9 ---------- Run | Yrd Mat Min Mat Machines Disabled 1 | . . 1 . Max in Single Turn 1 | . . 1 . Machines Repaired . | . . . . Machines Dismantled . | . . . . Machines Sabotaged . | . . . . Overloaded Fab Kills . | . . . . Hacking | -11 -10 -10 -9 --------- Run | Yrd Mat Min Mat Machines Accessed 3 | . 1 . 2 Terminals 3 | . 1 . 2 Fabricators . | . . . . Repair Stations . | . . . . Recycling Units . | . . . . Scanalyzers . | . . . . Garrison Access . | . . . . Total Hacks 6 | . 2 . 4 Successful 2 | . . . 2 Failed 4 | . 2 . 2 Catastrophic . | . . . . Database Lockouts . | . . . . Manual . | . . . . Terminals 6 | . 2 . 4 Fabricators . | . . . . Repair Stations . | . . . . Recycling Units . | . . . . Scanalyzers . | . . . . Garrison Access . | . . . . Terminal Hacks 2 | . . . 2 Unreport Threat 1 | . . . 1 Recall Assault 1 | . . . 1 Fabricator Hacks . | . . . . Repair Station Hacks . | . . . . Recycling Unit Hacks . | . . . . Scanalyzer . | . . . . Garrison Access Hacks . | . . . . Unauthorized Hacks . | . . . . Terminals . | . . . . Fabricators . | . . . . Repair Stations . | . . . . Recycling Units . | . . . . Scanalyzers . | . . . . Garrison Access . | . . . . Data Cores Recovered . | . . . . Used . | . . . . Hacking Detections 3 | . 1 . 2 Full Trace Events . | . . . . Feedback Events . | . . . . Feedback Blocked . | . . . . Robot Schematics Acquired . | . . . . Robots Built . | . . . . Authchips . | . . . . Time . | . . . . Total Robot Build Rating . | . . . . Part Schematics Acquired . | . . . . Parts Built . | . . . . Authchips . | . . . . Time . | . . . . Total Part Build Rating . | . . . . Parts Repaired . | . . . . Time . | . . . . Parts Recycled . | . . . . Recycled Matter . | . . . . Retrieved Matter . | . . . . Retrieved Components . | . . . . Parts Scanalyzed . | . . . . Part Schematics Acquired . | . . . . Parts Damaged . | . . . . Bothacking | -11 -10 -10 -9 ------------ Run | Yrd Mat Min Mat Used RIF Installer . | . . . . Robots Hacked . | . . . . Non-combat . | . . . . Combat . | . . . . Robot Hacks Applied . | . . . . Relay Couplers Released . | . . . . Fabnet Peak Effective % . | . . . . Robots Rewired . | . . . . Allies Hacked . | . . . . Hacks Repelled . | . . . . Allies | -11 -10 -10 -9 -------- Run | Yrd Mat Min Mat Total Allies . | . . . . Largest Group . | . . . . Highest-Rated Group . | . . . . Highest-Rated Ally . | . . . . Total Orders . | . . . . Ally Attacks . | . . . . Total Damage . | . . . . Kills . | . . . . Allies Corrupted . | . . . . Allies Melted . | . . . . Intel | -11 -10 -10 -9 ------- Run | Yrd Mat Min Mat Robot Analysis Total . | . . . . Derelict Logs Recovered . | . . . . Drone Launches . | . . . . Drone Recoveries . | . . . . Exploration | -11 -10 -10 -9 ------------- Run | Yrd Mat Min Mat Turns Passed 757 | 59 177 458 63 Spaces Moved 513 | 59 163 216 75 Core 31 | 31 . . . Treads . | . . . . Legs . | . . . . Wheels 482 | 28 163 216 75 Hover . | . . . . Flight . | . . . . Fastest Speed 50 | 50 90 80 80 Average Speed 85 | 68 90 87 80 Slowest Speed 95 | 90 90 95 80 Overloaded Moves . | . . . . Propulsion Burnouts . | . . . . Robots Hopped . | . . . . Cave-ins Triggered . | . . . . Exploration Rate (%) 20 | 4 29 38 9 Regions Visited 3 Branch Regions 1 Pre-discovered Areas . | . . . . Known Exits Taken . | . . . . Unknown Exits Taken 3 | 1 1 1 . Scrap Searched 1 | . . 1 . Spaces Dug . | . . . . Terrain Destroyed . | . . . . Melee . | . . . . Projectile . | . . . . AOE . | . . . . Terrain Rammed . | . . . . Walls Destroyed . | . . . . Machines Disabled . | . . . . Actions | -11 -10 -10 -9 --------- Run | Yrd Mat Min Mat Total 759 | 77 177 428 77 Wait 183 | 7 . 176 . Move 511 | 58 162 216 75 Hop . | . . . . Pick Up 15 | 6 5 4 . Fast Attach . | . . . . Attach 11 | 6 1 2 2 Detach 1 | . 1 . . Swap 1 | . . 1 . Drop . | . . . . Fire 36 | . 8 28 . Melee . | . . . . Ram 1 | . . 1 . Kick . | . . . . Crush . | . . . . Escape Stasis . | . . . . Rewire . | . . . . Trap . | . . . . Miscellaneous . | . . . . Route ------- -11/Scrapyard -10/Materials (discovered 2 exits: *Mat / [*Min]) -10/Mines -9/Materials History --------- Turn | Location | Event 5 | -11/Scrapyard | Discovered new exit (range 15) 60 | -11/Scrapyard | Entered Materials 136 | -10/Materials | Discovered new exit (range 14) 187 | -10/Materials | Discovered new exit (range 6) 237 | -10/Materials | Entered Mines 309 | -10/Mines | Build established: Mutant 348 | -10/Mines | Assembled infested the area 631 | -10/Mines | Core integrity fell below 50% 668 | -10/Mines | Discovered new exit (range 10) 695 | -10/Mines | Entered Materials 695 | -9/Materials | Evolved 2 slots: Power x1, Weapon x1 758 | -9/Materials | Self-destructed Last Messages --------------- 00668_ EXIT=FOUND 00672_ K-01 Serf collects debris. 00695_ Slammed into K-01 Serf. PARAMETERS=POWER+1,WEAPON+1 LOCATION=UNKNOWN GOAL=ESCAPE 00696_ T-07 Excavator is excavating. 00708_ Connecting with Terminal... 00708_ Current location identified: Materials 00725_ T-07 Excavator is excavating. 00754_ Triggered Alarm Trap. 00754_ An alarm sounds. 00754_ ALERT: Alarm triggered, dispatching investigation squad. 00754_ K-01 Serf collects debris. 00758_ Connecting with Terminal... >>Alert(Purge) Purged threat record, alert level lowered. >>Recall(Assault) Establishing remote squad link... No tasked assault squads found. Map ----- +----------------------------------------------------+ | | | | | ?????????????????????????????????????????????????? | | ?????????????????????????????????????????????????? | | ?????????????????????????????????????????????????? | | ?????????????????????????????????????????????????? | | ?????????????????????????????????????????????????? | | ?????????????????????????????????????????????????? | | ?????????????????????????????????????????????????? | | ?????????????????????????????????????????????????? | | ?????????????????????????????????????????????????? | | ????????????????????????????????????????????###### | | ????????????????????????????????????????##### """ | | ????????????????????????????????????????# # """" | | ??????????????????????????????########### # """" | | ??????????????????????????????# # # """" | | ??????????????????????????????# # + """ | | ??????????????????????????????# """ """ # # | | ??????????????????????????????# """ """ # # | | ??????????????????????????????# """ """ # # | | ??????????????????????????????# # ###### | | ??????????????????????????????# # #? ## | | ?????????????????????###+###??# # # # | | ??????????????# #### ##########+### #? | | ??????????????# # #?? | | ??????????????# T@ ####?? | | ??????????????# #????? | | ??????????????######## ##########+#########??? | | ?????????????????????## ##????????# #??? | | ??????????????????????#k #?????????# !| """ #??? | | ??????????????????????# #?????????# !| """ #??? | | ??????????????????????# +?????????# ! """ #??? | | ?????????????????????? #?????????# """ #??? | | ????????????????????? #?????????# [ """ #??? | | ???????????????????? ??????????# #??? | | ???????????????????#####+#??????????# #??? | | ????????????????????????????????????###########??? | | ?????????????????????????????????????????????????? | | ?????????????????????????????????????????????????? | | ?????????????????????????????????????????????????? | | ?????????????????????????????????????????????????? | | ?????????????????????????????????????????????????? | | ?????????????????????????????????????????????????? | | ?????????????????????????????????????????????????? | | ?????????????????????????????????????????????????? | | ?????????????????????????????????????????????????? | | ?????????????????????????????????????????????????? | | ?????????????????????????????????????????????????? | | ?????????????????????????????????????????????????? | | ?????????????????????????????????????????????????? | +----------------------------------------------------+ Best States ------------- Heat Dissipation 28 Energy Generation 15 Energy Capacity 275 Matter Stores 300 Matter Capacity 300 Sight Range 16 Terrain Scan Density 10 Resistance: KI 20 Resistance: TH 20 Resistance: EX 20 Resistance: EM 20 Resistance: I 20 Resistance: S 20 Resistance: P 20 Evasion (%) 50 Offensive Hacking 10 Authchip Count 1 Item Schematics ----------------- None Robot Schematics ------------------ None Fabricated ------------ Nothing Alien Tech Used ----------------- None Achievements -------------- None Challenges ------------ None Game ------ Seed BarrageDispersionInitializer Manual? 0 Play Time 00:06:31 Cumulative 17.7 hours Start 2024.04.24 @ 22:57:29 End 2024.04.24 @ 23:03:11 Sessions 1 Manual Loads 0 Difficulty Adventurer Special Mode None Game No. 33 Rogue 0 Adventurer 33 Explorer 0 Win Type - Total 0 Types 0/0/0/0/0/0/0/0/0 Lore% 27 Gallery% 29 Achievement% 22 Wizard Run 0 Options --------- Layout 0 ASCII 0 Keyboard 1 Movement Numpad Keybinds 0 Fullscreen 1 Font 18/SmallcapsGlow Map View 76x50 Zoom Use 0% Tactical HUD 1 Map Filters NONE Filters NONE Steam 1 RUN: 72eeec90-ac49-4a46-9eea-e4063ac22d77